bitfinex/quotes_ETHUSD_20241124
["timestamp","ask_amount","ask_price","bid_price","bid_amount"]
[1732459835409,0.18,3315.7,3315.5,2.41289]
[1732459835797,0.18,3315.7,3315.6,2.41283]
[1732459836002,0.18,3315.7,3315.2,0.24132]
[1732459836003,0.18,3315.7,3315.3,0.265437]
[1732459836228,0.18,3315.7,3315.0,0.7937]
[1732459836434,0.18,3315.7,3315.3,2.41301]
[1732459836931,0.18,3315.7,3315.5,2.4129]
[1732459837134,0.18,3315.7,3315.0,0.7937]
[1732459837336,0.18,3315.7,3314.7,3.0]
[1732459837337,3.01622,3315.4,3314.6,0.7937]
[1732459837581,3.01622,3315.4,3314.3,3.20746]
[1732459837582,0.18,3315.4,3314.3,3.20746]
[1732459837834,0.8288,3315.0,3313.9,2.41402]
[1732459838048,3.01724,3314.3,3313.6,2.41424]
[1732459838263,0.8288,3314.2,3313.8,2.41414]
[1732459838404,0.8288,3314.2,3313.8,2.896978]
[1732459838606,0.18,3314.3,3313.6,0.03017422]
[1732459838910,0.18,3314.3,3314.0,2.41395]
[1732459839110,0.18,3314.3,3313.6,2.41429]
[1732459839111,0.18,3314.3,3313.8,2.4141]
[1732459839328,0.18,3314.3,3313.9,2.41406]
[1732459839738,0.18,3314.3,3313.8,2.65551]
[1732459839904,0.18,3314.3,3313.8,5.06959]
[1732459840107,0.18,3314.3,3313.8,2.65549]
[1732459840301,0.18,3314.3,3314.0,2.41395]
[1732459840617,0.18,3314.3,3313.8,2.41408]
[1732459840819,0.18,3314.3,3313.8,0.482835]
[1732459841018,0.18,3314.3,3314.0,2.41393]
[1732459841204,0.18,3314.3,3314.1,2.41391]
[1732459841728,0.18,3314.4,3314.1,2.41391]
[1732459842038,0.18,3314.4,3314.3,2.41378]
[1732459842245,0.18,3314.8,3314.3,2.41378]
[1732459842620,0.18,3314.8,3314.4,2.41365]
[1732459842824,0.18,3314.8,3314.5,2.41363]
[1732459843034,0.18,3314.8,3314.7,2.41349]
[1732459843534,0.18,3315.5,3315.4,2.41298]
[1732459843739,0.18,3315.6,3315.4,0.482602]
[1732459843923,0.18,3315.6,3315.4,2.41298]
[1732459844531,0.18,3315.6,3315.1,2.41317]
[1732459844732,0.18,3315.6,3315.1,2.41315]
[1732459845020,0.18,3315.6,3315.3,2.41304]
[1732459845454,0.0929594,3315.5,3315.3,2.41304]
[1732459845655,0.0929594,3315.5,3315.4,2.41298]
[1732459846118,0.0929594,3315.5,3315.4,2.895582]
[1732459846821,0.18,3315.6,3315.5,2.4129]
[1732459847570,0.18,3315.6,3315.5,2.44305967]
[1732459847726,0.18,3316.0,3315.9,2.41261]
[1732459850127,0.18,3316.0,3315.8,2.41267]
[1732459850770,0.18,3316.3,3315.9,2.41261]
[1732459850966,0.18,3316.3,3315.8,2.41267]
[1732459851404,0.18,3316.3,3315.9,2.4126]
[1732459851610,0.18,3316.3,3315.8,2.41267]
[1732459851785,0.18,3316.3,3315.9,2.41261]
[1732459852105,0.18,3316.3,3315.8,2.41267]
[1732459852485,3.19547,3316.3,3315.7,2.4127]
[1732459853193,3.19547,3316.3,3315.5,2.41287]
[1732459853378,0.7737,3316.2,3315.5,2.41287]
[1732459853583,3.01573,3316.0,3315.4,2.41296]
[1732459854425,3.01573,3316.0,3315.2,0.37934]
[1732459854426,3.01583,3315.9,3315.2,2.79241]
[1732459854711,0.18,3315.8,3315.4,2.41293]
[1732459854915,0.7737,3315.7,3315.2,2.79243]
[1732459855107,3.01605,3315.6,3315.0,2.41324]
[1732459855437,0.7737,3315.7,3315.3,2.41305]
[1732459855581,0.18,3315.8,3315.6,2.41283]
[1732459855783,0.18,3315.8,3315.7,2.41276]
[1732459855986,0.18,3315.8,3315.6,2.41277]
[1732459856382,0.18,3315.8,3315.4,2.41293]
[1732459856732,0.18,3315.8,3315.3,2.413]
[1732459857018,0.1701,3315.8,3315.3,2.413]
[1732459857203,0.1701,3315.8,3315.4,2.41292]
[1732459857419,0.1701,3315.8,3315.0,0.65084055]
[1732459857712,0.1701,3315.8,3315.7,2.41276]
[1732459857916,0.1601,3315.8,3315.7,2.41276]
[1732459858706,0.1601,3315.8,3315.7,5.41276]
[1732459859144,0.1601,3315.8,3315.7,5.44291251]
[1732459859313,0.1601,3315.8,3315.7,6.30781936]
[1732459860136,0.1601,3315.8,3315.7,6.27766725]
[1732459860615,0.1601,3315.8,3315.7,6.3078205]
[1732459861143,3.01433,3317.5,3315.7,6.3078205]
[1732459861144,0.7737,3317.5,3317.1,2.41173]
[1732459861332,0.7737,3317.5,3317.4,2.41152]
[1732459861530,0.09414466,3317.5,3317.4,2.41152]
[1732459861750,3.01411,3317.8,3317.2,2.41161]
[1732459861935,0.09414466,3317.5,3317.0,2.41176]
[1732459862245,0.7737,3317.7,3317.2,2.4116]
[1732459862246,1.075111,3317.7,3317.2,2.4116]
[1732459862455,0.09414466,3317.4,3317.2,2.4116]
[1732459862767,0.7737,3317.7,3316.9,2.41188]
[1732459862910,0.09414466,3317.3,3316.8,2.41195]
[1732459863105,0.40500013,3317.3,3316.8,2.41195]
[1732459863359,0.09414466,3317.3,3316.8,4.8239]
[1732459863554,0.09414466,3317.3,3316.8,2.41195]
[1732459863854,0.8072,3317.2,3316.6,2.41208]
[1732459864152,3.82185,3317.2,3316.4,2.41219]
[1732459864320,0.8072,3316.8,3316.2,4.82473]
[1732459864523,0.09485234,3316.7,3316.3,2.41231]
[1732459864729,0.8072,3316.8,3316.4,2.41224]
[1732459864925,0.8072,3316.8,3316.5,2.41215]
[1732459865249,0.09485234,3316.7,3316.6,2.4121]
[1732459865669,0.8072,3316.8,3316.7,2.41203]
[1732459865980,0.8072,3316.8,3316.3,2.41227]
[1732459866130,0.8072,3316.8,3316.0,0.241247]
[1732459866329,0.8072,3316.8,3316.7,2.41203]
[1732459866956,0.8072,3316.8,3316.3,4.82457]
[1732459867156,0.8072,3316.8,3316.5,2.41217]
[1732459867458,0.01,3317.1,3316.7,2.41203]
[1732459867627,3.02474,3317.1,3316.5,2.41217]
[1732459867834,0.01,3317.1,3316.5,2.41217]
[1732459868029,3.02472,3317.1,3316.5,2.41217]
[1732459868339,0.8072,3316.6,3316.1,2.41241]
[1732459868841,0.8172,3316.6,3316.2,2.41235]
[1732459869246,3.01524,3316.5,3315.9,2.4126]
[1732459869445,0.01,3316.4,3316.0,2.41251]
[1732459869665,0.01,3316.4,3315.8,3.0]
[1732459869666,3.0154,3316.3,3315.8,2.41267]
[1732459869970,0.01,3316.2,3315.6,2.41277]
[1732459870270,0.8072,3316.1,3315.9,2.41261]
[1732459870480,0.8072,3316.1,3316.0,2.41254]
[1732459870773,0.01,3316.2,3316.1,2.41247]
[1732459871756,0.01,3316.2,3316.1,2.44262446]
[1732459871978,0.01,3316.5,3316.4,2.41225]
[1732459872770,0.01,3316.5,3316.2,2.41233]
[1732459872942,0.01,3316.5,3316.0,2.653754]
[1732459873162,0.8072,3316.4,3316.1,2.41242]
[1732459873393,0.89893107,3316.4,3315.6,2.41279]
[1732459873552,3.01555,3316.2,3315.6,2.41279]
[1732459873758,0.09173107,3316.3,3315.8,2.41268]
[1732459873954,3.83253,3316.4,3315.6,4.82555]
[1732459874155,3.01541,3316.3,3315.8,2.41268]
[1732459874372,3.10714107,3316.3,3315.8,2.41268]
[1732459874593,0.09173107,3316.3,3315.8,2.41268]
[1732459874801,0.8172,3316.4,3316.1,2.41246]
[1732459874952,0.09173107,3316.2,3316.1,2.41246]
[1732459875158,0.01,3316.4,3316.1,3.25141439]
[1732459875390,0.01,3316.4,3316.3,2.41232]
[1732459875625,0.01,3316.7,3316.6,2.4121]
[1732459875777,0.01,3317.0,3316.9,2.41189]
[1732459876127,0.01,3317.0,3316.9,2.44203462]
[1732459877225,0.01,3317.4,3317.3,2.41159]
[1732459877414,0.8072,3317.8,3317.5,2.4114]
[1732459877716,0.8072,3317.8,3316.8,0.8088]
[1732459877717,3.8213,3317.8,3316.8,0.8088]
[1732459877896,1.24950867,3317.8,3317.3,2.41154]
[1732459878094,3.01439,3317.5,3316.5,0.8088]
[1732459878332,0.8072,3317.1,3316.6,2.41204]
[1732459878478,1.18938,3317.1,3316.6,2.41204]
[1732459878888,3.01482,3317.0,3316.4,2.41225]
[1732459879118,3.01482,3317.0,3316.0,2.41254]
[1732459879425,3.7367,3317.0,3316.4,2.41221]
[1732459879781,1.18938,3317.1,3315.9,3.0]
[1732459879985,0.8072,3317.5,3316.8,2.41191]
[1732459880189,0.8072,3317.5,3317.0,2.4118]
[1732459880922,3.82152,3317.5,3317.0,2.4118]
[1732459881135,3.01446,3317.4,3316.8,2.41191]
[1732459881307,1.490782,3317.5,3316.8,2.41191]
[1732459881308,3.0145,3317.3,3316.8,2.41191]
[1732459881836,3.01443,3317.4,3316.8,2.41191]
[1732459881988,3.4649342,3317.4,3316.8,2.41191]
[1732459882189,0.8072,3317.5,3316.5,0.8088]
[1732459882390,0.8072,3318.0,3317.5,2.41144]
[1732459882619,0.8072,3318.0,3317.4,2.41152]
[1732459882620,4.203157,3318.0,3317.4,2.41152]
[1732459882991,0.8072,3318.0,3317.8,2.41119]
[1732459883186,0.8072,3318.3,3317.8,2.41119]
[1732459883597,0.8072,3318.3,3317.7,2.41129]
[1732459884322,0.8072,3318.3,3317.8,2.4112]
[1732459884525,0.77,3318.6,3317.5,2.41145]
[1732459884729,0.77,3318.6,3318.1,2.41101]
[1732459884925,0.77,3319.5,3318.3,2.41083]
[1732459885225,3.01272,3319.3,3318.5,2.41071]
[1732459885431,3.01294,3319.1,3318.5,2.41071]
[1732459885793,0.77,3318.8,3318.1,2.41101]
[1732459885991,3.78319,3318.8,3318.1,2.41095]
[1732459886327,3.01334,3318.6,3317.9,2.41113]
[1732459886507,3.01341,3318.5,3317.9,2.41113]
[1732459886698,3.01324,3318.7,3318.0,2.41108]
[1732459886890,0.0921659,3318.4,3318.0,2.41108]
[1732459887120,3.01338,3318.6,3318.0,2.41108]
[1732459887322,3.01338,3318.6,3317.8,0.8245]
[1732459887323,0.0921659,3318.3,3318.1,2.41096]
[1732459887637,0.0931108,3318.2,3318.1,2.41096]
[1732459887837,0.77,3318.8,3317.8,0.8245]
[1732459888004,3.01299,3319.0,3318.4,2.41073]
[1732459888233,3.01299,3319.0,3318.5,2.41072]
[1732459888562,3.01306,3318.9,3318.2,2.41091]
[1732459888867,3.01306,3318.9,3317.8,0.8245]
[1732459888868,3.01305,3318.9,3317.8,0.8245]
[1732459889065,3.01314,3318.8,3318.2,2.41089]
[1732459889255,0.378305,3318.9,3318.5,2.41072]
[1732459889558,0.77,3319.5,3318.8,2.41046]
[1732459889765,3.01269,3319.3,3318.8,2.41046]
[1732459889968,3.78256,3319.5,3318.8,2.41046]
[1732459890128,4.160816,3319.5,3318.8,2.41046]
[1732459890328,1.148256,3319.5,3318.9,2.41042]
[1732459890528,3.390816,3319.5,3318.8,2.41046]
[1732459890763,3.390816,3319.5,3318.9,2.41043]
[1732459890969,3.01275,3319.3,3318.6,2.41062]
[1732459891156,3.0129,3319.1,3318.5,3.23521]
[1732459891461,3.0129,3319.1,3318.6,2.41064]
[1732459891631,3.0129,3319.1,3318.5,2.41071]
[1732459892029,3.0129,3319.1,3318.2,0.8245]
[1732459892030,3.01324,3318.7,3318.2,0.8245]
[1732459892227,3.01324,3318.7,3318.0,3.0]
[1732459892228,0.77,3319.0,3318.0,4.82218]
[1732459892433,3.0127,3319.3,3318.7,2.41057]
[1732459892658,3.01296,3319.0,3318.4,2.41076]
[1732459893667,3.01296,3319.0,3318.2,0.8245]
[1732459893851,3.01296,3319.0,3318.4,2.41075]
[1732459894032,3.01275,3319.3,3318.6,2.4106]
[1732459894236,3.01275,3319.3,3318.7,2.41053]
[1732459894466,0.77,3319.4,3318.9,2.41038]
[1732459894669,0.77,3319.4,3319.1,2.41024]
[1732459895256,0.77,3319.4,3318.9,4.82076]
[1732459895461,0.77,3319.4,3319.0,2.41034]
[1732459895657,3.78265,3319.4,3318.8,2.41046]
[1732459896243,3.78265,3319.4,3318.9,2.41042]
[1732459896678,3.78264,3319.4,3318.7,0.24408276]
[1732459896835,3.01328,3318.7,3318.2,0.8245]
[1732459897043,0.77,3319.4,3318.3,0.03013274]
[1732459897238,3.01275,3319.3,3318.6,2.41059]
[1732459897434,3.01275,3319.3,3318.7,2.41058]
[1732459897773,3.01282,3319.2,3318.7,2.41055]
[1732459897979,3.01301,3319.0,3318.2,3.23541]
[1732459898133,3.01289,3319.1,3318.6,2.4106]
[1732459898337,3.0129,3319.1,3318.5,2.41072]
[1732459898636,3.01298,3319.0,3318.4,2.41078]
[1732459898867,3.01312,3318.9,3318.2,3.23543]
[1732459899180,3.01329,3318.7,3318.2,0.8245]
[1732459899382,3.01346,3318.5,3318.2,0.8245]
[1732459899550,3.01329,3318.7,3318.0,5.41107]
[1732459899742,3.01329,3318.7,3318.0,5.652185]
[1732459900057,3.01329,3318.7,3318.0,2.652185]
[1732459900259,3.01385,3318.1,3317.6,0.775]
[1732459900437,3.01407,3317.8,3317.3,0.775]
[1732459900644,3.01407,3317.8,3316.5,0.19128631]
[1732459900645,0.8097,3318.0,3316.9,0.775]
[1732459900985,3.01448,3317.4,3316.9,0.775]
[1732459901186,3.0145,3317.3,3316.9,0.318691]
[1732459901351,3.01466,3317.2,3316.6,3.1871]
[1732459901558,3.01487,3316.9,3316.4,2.41219]
[1732459901760,3.01487,3316.9,3316.2,2.41236]
[1732459901960,3.01501,3316.8,3316.2,2.41239]
[1732459902286,3.01474,3317.1,3316.4,2.41224]
[1732459902583,3.01474,3317.1,3316.2,2.41239]
[1732459902584,3.01509,3316.7,3316.2,0.559989]
[1732459902783,3.01489,3316.9,3316.0,0.775]
[1732459902994,0.8097,3317.3,3316.0,3.18749]
[1732459903160,3.01504,3316.7,3316.1,0.318749]
[1732459903672,3.01504,3316.7,3316.1,2.731209]
[1732459903895,3.01515,3316.6,3316.1,0.318749]
[1732459904054,3.01523,3316.5,3316.1,0.318749]
[1732459904255,3.01523,3316.5,3316.0,0.775]
[1732459904561,3.01505,3316.7,3316.0,0.775]
[1732459904562,0.08998574,3316.4,3316.1,2.44261259]
[1732459904772,3.01505,3316.7,3316.1,2.44261259]
[1732459905069,0.08998574,3316.6,3316.1,2.76437385]
[1732459905470,3.01522,3316.5,3316.1,0.32176126]
[1732459905697,3.01515,3316.6,3316.1,0.32176126]
[1732459906188,3.01533,3316.4,3316.1,0.32176126]
[1732459906377,3.01533,3316.4,3316.0,0.775]
[1732459906576,0.08998574,3316.3,3316.0,0.775]
[1732459906756,0.08998574,3316.3,3315.8,2.41264]
[1732459906960,0.08998574,3316.3,3315.9,0.241264]
[1732459907276,0.08998574,3316.3,3315.9,2.68402694]
[1732459907585,3.01514,3316.6,3315.9,2.44276294]
[1732459907772,0.08998574,3316.5,3316.1,2.41244]
[1732459907973,3.01505,3316.7,3316.1,2.41244]
[1732459908179,3.01505,3316.7,3316.0,0.24427629]
[1732459908369,0.08998574,3316.6,3316.1,2.41246]
[1732459908570,3.01504,3316.7,3315.9,0.03015261]
[1732459908767,0.08863168,3316.6,3316.0,0.54427826]
[1732459908972,3.01498,3316.8,3316.1,2.41242]
[1732459909177,0.08863168,3316.7,3316.0,2.41251]
[1732459909373,3.01505,3316.7,3316.0,2.953761]
[1732459909567,3.01505,3316.7,3316.0,0.541251]
[1732459909568,0.08863168,3316.6,3316.0,0.541251]
[1732459909969,0.08863168,3316.6,3315.8,2.41265]
[1732459910199,0.08863168,3316.6,3316.0,2.41249]
[1732459910718,3.10378168,3316.6,3316.0,2.41249]
[1732459911090,0.08863168,3316.6,3316.1,2.41242]
[1732459911326,3.10377168,3316.6,3315.9,2.736895]
[1732459911623,3.01529,3316.5,3315.9,0.324335]
[1732459911920,3.01529,3316.5,3315.7,3.24342]
[1732459911921,3.01529,3316.5,3315.8,5.41268]
[1732459912214,3.01542,3316.3,3315.7,0.8307]
[1732459912521,3.01542,3316.3,3315.7,2.41275]
[1732459913033,3.01563,3316.1,3315.6,3.0]
[1732459913422,3.01568,3316.0,3315.5,0.8307]
[1732459913725,3.10433536,3316.0,3315.5,1.396361]
[1732459914295,0.08865536,3316.0,3315.5,3.809261]
[1732459914628,0.08865536,3316.0,3315.6,0.3809261]
[1732459914815,0.08865536,3316.0,3315.5,1.396361]
[1732459914816,0.08865536,3316.0,3315.5,3.24354]
[1732459915129,0.08865536,3316.0,3315.5,2.41284]
[1732459915633,0.08865536,3316.0,3315.9,2.41261]
[1732459915933,0.7719,3316.8,3315.9,1.071961]
[1732459916227,3.78636,3317.4,3316.7,2.41201]
[1732459916523,0.7719,3317.4,3316.7,2.41201]
[1732459916737,0.08845639,3317.3,3317.0,2.4118]
[1732459916941,0.08845639,3317.3,3316.8,2.41193]
[1732459917095,3.01431,3317.5,3316.8,2.41193]
[1732459917625,0.08845639,3317.4,3316.5,0.8307]
[1732459917804,3.01419,3317.7,3316.6,2.4121]
[1732459918004,0.08845639,3317.3,3316.6,0.0301436]
[1732459918246,3.01457,3317.3,3316.7,2.41202]
[1732459918399,3.01457,3317.3,3316.2,3.0]
[1732459918400,3.01482,3317.0,3316.3,2.4123]
[1732459918791,0.7884,3317.1,3316.2,3.787]
[1732459918792,3.01492,3316.9,3316.2,3.19934]
[1732459918991,3.01506,3316.7,3316.0,2.41253]
[1732459919187,0.380332,3316.9,3316.2,2.41235]
[1732459919427,0.08845639,3316.8,3316.3,2.41227]
[1732459919799,0.08845639,3316.8,3316.4,2.41222]
[1732459920127,0.7884,3317.1,3316.4,2.41222]
[1732459920329,0.08845639,3316.7,3316.2,2.41235]
[1732459920527,3.01502,3316.8,3316.2,2.41235]
[1732459920990,0.08845639,3316.7,3316.2,2.41235]
[1732459921193,0.08845639,3316.7,3315.8,0.787]
[1732459921434,3.01519,3316.6,3315.9,2.41256]
[1732459921636,3.40531696,3316.6,3316.0,2.41249]
[1732459921940,0.08860796,3316.6,3316.2,2.41238]
[1732459922229,3.01498,3316.8,3316.2,2.41238]
[1732459922528,0.08860796,3316.5,3316.2,2.41238]
[1732459922701,0.7884,3317.1,3316.7,2.41201]
[1732459922899,3.01423,3317.6,3316.2,0.27440427]
[1732459922900,0.7884,3317.5,3316.9,2.41187]
[1732459923138,3.01405,3317.8,3317.2,2.41165]
[1732459923499,0.7884,3317.9,3317.4,2.41148]
[1732459923696,0.7884,3317.9,3317.0,0.787]
[1732459923924,0.8136,3318.4,3317.9,2.41113]
[1732459924095,3.01318,3318.8,3316.4,0.84436033]
[1732459924096,3.01321,3318.8,3318.1,2.41097]
[1732459924298,3.01321,3318.8,3318.2,2.65504066]
[1732459924549,3.01338,3318.6,3317.9,2.41111]
[1732459924835,3.01338,3318.6,3318.0,2.41108]
[1732459925018,3.01299,3319.0,3318.4,2.41077]
[1732459925346,3.01278,3319.2,3318.6,2.41063]
[1732459925841,3.01288,3319.1,3318.4,3.16667]
[1732459926000,3.01281,3319.2,3318.4,3.16669]
[1732459926335,3.01281,3319.2,3318.6,2.41059]
[1732459926336,3.01285,3319.2,3318.6,2.41059]
[1732459926539,0.8136,3319.3,3318.8,2.4105]
[1732459926725,3.11153,3320.6,3318.9,0.03012875]
[1732459926726,3.82598,3319.7,3318.9,0.03012875]
[1732459926928,3.01242,3319.6,3319.0,2.41035]
[1732459927233,0.8136,3319.7,3319.4,2.41005]
[1732459927443,3.01188,3320.2,3319.5,2.41]
[1732459927444,0.8136,3320.0,3319.5,2.41]
[1732459927597,3.01186,3320.2,3319.6,2.40992]
[1732459927799,3.01186,3320.2,3319.2,0.7559]
[1732459928000,3.01223,3319.8,3319.2,0.7559]
[1732459928250,0.301223,3319.8,3319.2,6.16611]
[1732459928399,1.74718572,3320.4,3319.2,0.7559]
[1732459928735,3.01195,3320.1,3318.8,3.16639]
[1732459928900,3.01195,3320.1,3317.8,2.51119]
[1732459928901,0.8136,3319.6,3318.5,0.7559]
[1732459929232,0.8136,3319.6,3318.6,2.44077887]
[1732459929433,3.01277,3319.2,3318.6,2.41065]
[1732459929646,3.01286,3319.1,3318.5,0.7559]
[1732459929935,0.08485226,3319.1,3318.5,3.16661]
[1732459930342,3.01259,3319.4,3318.5,3.16661]
[1732459930513,0.08485226,3319.0,3318.6,2.4106]
[1732459930716,3.82603,3319.6,3318.8,2.41049]
[1732459930717,3.01253,3319.5,3318.8,2.41049]
[1732459930929,0.08485226,3318.9,3318.7,2.41057]
[1732459931111,3.01287,3319.1,3318.5,3.16662]
[1732459931319,0.08485226,3318.8,3318.5,3.483282]
[1732459931642,0.08485226,3318.7,3318.5,3.483282]
[1732459931843,0.08485226,3318.7,3318.5,3.16662]
[1732459932057,6.02543,3319.3,3318.5,3.16662]
[1732459932231,0.08485226,3318.6,3318.5,3.16662]
[1732459932428,3.01277,3319.2,3318.6,2.41063]
[1732459932612,3.01252,3319.5,3318.9,2.41042]
[1732459932816,0.08485226,3319.1,3318.5,0.7559]
[1732459933125,3.01283,3319.2,3318.5,3.16662]
[1732459933342,0.08485226,3319.0,3318.6,0.31967468]
[1732459933663,0.08485226,3318.9,3318.6,2.73027468]
[1732459933861,3.013,3319.0,3318.2,0.7559]
[1732459934015,0.08485226,3318.8,3318.1,2.41094]
[1732459934217,0.8136,3318.9,3318.3,2.41081]
[1732459934417,3.01332,3318.6,3317.9,3.16701]
[1732459934921,3.0135,3318.4,3317.9,0.7559]
[1732459935148,0.08505641,3318.5,3317.7,2.41129]
[1732459935329,3.01332,3318.6,3317.7,2.41129]
[1732459935630,0.8136,3318.2,3317.5,0.7559]
[1732459935842,3.01417,3317.7,3317.1,0.7559]
[1732459936157,3.01455,3317.3,3316.9,0.31369161]
[1732459936327,3.01445,3317.4,3316.9,0.31369161]
[1732459936648,3.01476,3317.1,3316.3,0.7559]
[1732459936849,3.09912006,3317.3,3316.3,0.7559]
[1732459937069,3.01476,3317.1,3316.4,2.41225]
[1732459937233,3.01459,3317.2,3316.7,2.41196]
[1732459937234,0.08461006,3317.2,3316.7,2.41196]
[1732459937442,3.01448,3317.4,3316.8,0.03014837]
[1732459937628,0.08351267,3317.1,3316.7,2.41202]
[1732459937831,3.0144,3317.5,3316.7,2.41202]
[1732459938025,0.08351267,3317.0,3316.8,2.41195]
[1732459938226,0.8136,3317.6,3316.6,0.2970233]
[1732459938471,3.01496,3316.8,3316.1,2.41242]
[1732459938771,0.8136,3316.9,3315.9,0.31379266]
[1732459938951,3.0153,3316.5,3315.9,0.58643093]
[1732459939140,3.01533,3316.4,3315.9,0.27263827]
[1732459939336,0.08352217,3316.4,3315.9,0.27263827]
[1732459939537,0.08352217,3316.4,3316.2,2.41233]
[1732459939835,0.08350791,3316.3,3315.9,2.4126]
[1732459940063,0.8136,3316.9,3316.3,2.41229]
[1732459940242,3.828,3317.4,3316.7,2.41199]
[1732459940424,3.01452,3317.3,3316.7,2.41199]
[1732459940787,0.3,3317.7,3316.5,2.41218]
[1732459940788,3.01414,3317.7,3317.1,2.41168]
[1732459941360,3.01424,3317.6,3316.9,2.41182]
[1732459941563,3.01413,3317.7,3317.0,0.241182]
[1732459941763,0.8136,3317.8,3316.7,3.0]
[1732459941764,0.8136,3317.8,3316.9,2.41187]
[1732459942060,0.61495385,3318.2,3317.4,2.41145]
[1732459942061,1.42855385,3318.2,3317.4,2.41145]
[1732459942375,3.01377,3318.1,3317.5,2.41143]
[1732459942670,3.01396,3317.9,3317.3,2.41155]
[1732459942890,1.42855385,3318.2,3317.2,1.07566909]
[1732459943028,3.01386,3318.0,3317.3,2.81908691]
[1732459943227,3.01386,3318.0,3317.3,2.41152]
[1732459943943,3.01404,3317.8,3317.2,2.4116]
[1732459944143,3.45802239,3318.1,3317.3,2.41159]
[1732459944368,3.01387,3318.0,3317.4,2.41147]
[1732459944584,0.8136,3318.2,3317.5,0.03014108]
[1732459944780,3.0,3318.9,3317.8,2.41119]
[1732459944781,3.01341,3318.5,3317.8,2.41119]
[1732459945088,3.01342,3318.5,3317.8,2.41119]
[1732459945246,3.01359,3318.3,3317.6,2.41137]
[1732459945451,3.01359,3318.3,3317.7,2.41129]
[1732459945765,0.7559,3318.6,3317.8,0.03013676]
[1732459946092,0.7559,3319.0,3318.3,2.41086]
[1732459946389,0.7559,3319.0,3318.5,2.41072]
[1732459946585,0.7559,3319.0,3318.4,2.41074]
[1732459946883,3.01306,3318.9,3318.3,2.41083]
[1732459947250,0.7559,3319.0,3318.4,2.41079]
[1732459947556,0.7559,3319.4,3318.7,2.41055]
[1732459947756,3.01278,3319.2,3318.6,2.41061]
[1732459948144,3.01278,3319.2,3318.5,2.41072]
[1732459948145,3.389648,3319.2,3318.5,2.41072]
[1732459948486,3.389648,3319.2,3318.3,3.22376]
[1732459948687,3.01303,3319.0,3318.3,2.41086]
[1732459949193,3.01303,3319.0,3318.4,2.41079]
[1732459949552,3.01295,3319.1,3318.5,2.41071]
[1732459949787,0.08489499,3318.9,3318.3,2.41086]
[1732459949990,3.01295,3319.0,3318.3,2.41086]
[1732459950155,0.08489499,3318.8,3318.4,2.41078]
[1732459950481,0.08489499,3318.7,3318.6,2.41065]
[1732459950849,3.0122,3319.9,3318.7,0.8129]
[1732459951047,0.60194571,3319.7,3319.2,2.41016]
[1732459951257,0.60194571,3319.7,3318.7,1.05697803]
[1732459951487,0.08490448,3319.6,3319.2,2.41016]
[1732459951664,0.08490448,3319.6,3319.0,2.41029]
[1732459951981,0.08490448,3319.6,3319.3,2.41008]
[1732459952186,0.08490448,3319.6,3319.5,2.41]
[1732459952629,0.7559,3320.1,3319.5,2.41]
[1732459952763,3.01206,3320.0,3319.4,2.41006]
[1732459952960,0.08508488,3319.6,3319.4,2.41006]
[1732459953184,0.60863078,3320.0,3319.5,2.40997]
[1732459953589,3.01222,3319.9,3319.3,2.41014]
[1732459953902,0.60863078,3320.0,3319.6,2.40991]
[1732459954056,0.60863078,3320.0,3319.3,2.41008]
[1732459954265,0.60863078,3320.0,3319.5,2.40999]
[1732459954975,0.60863078,3320.0,3319.6,2.40988]
[1732459955296,3.62069078,3320.0,3319.4,2.41004]
[1732459955593,0.60863078,3320.0,3319.6,2.40986]
[1732459956107,0.60863078,3320.0,3319.4,2.41004]
[1732459956391,0.7559,3320.2,3319.2,3.2231]
[1732459956571,3.01216,3319.9,3319.4,2.41005]
[1732459956774,3.01216,3319.9,3319.3,2.41014]
[1732459957210,3.01216,3319.9,3319.2,2.4102]
[1732459957421,3.01223,3319.8,3319.2,2.4102]
[1732459957984,3.01232,3319.7,3319.2,2.4102]
[1732459958212,3.7685,3319.4,3318.8,2.4105]
[1732459958371,3.7685,3319.4,3318.8,2.41045]
[1732459958579,3.7685,3319.4,3318.8,2.4105]
[1732459958882,0.7559,3319.4,3318.9,2.41043]
[1732459959296,0.7559,3319.4,3318.7,2.41051]
[1732459959297,3.76851,3319.4,3318.7,2.41051]
[1732459959691,3.76851,3319.4,3318.3,0.8129]
[1732459959692,3.01293,3319.1,3318.4,5.41077]
[1732459959879,3.01293,3319.1,3318.5,2.41071]
[1732459960200,3.01268,3319.3,3318.6,2.41063]
[1732459960398,0.7559,3319.4,3318.6,2.41063]
[1732459960399,0.7559,3319.4,3318.6,3.01423099]
[1732459960582,3.01281,3319.2,3318.6,2.41063]
[1732459961327,0.7559,3318.8,3317.9,6.99428819]
[1732459961613,3.01337,3318.6,3318.0,2.41102]
[1732459961811,3.76904,3318.8,3318.1,2.41097]
[1732459962178,0.7559,3318.8,3318.1,2.41099]
[1732459962518,0.7559,3318.8,3318.5,2.41071]
[1732459962689,0.7559,3319.2,3318.9,2.41037]
[1732459963026,0.7559,3319.6,3318.9,0.241037]
[1732459963357,0.7559,3319.6,3319.2,2.41017]
[1732459963479,3.01205,3320.0,3319.4,2.41002]
[1732459963480,0.8075,3320.0,3319.4,2.41002]
[1732459963678,3.8196,3320.0,3319.3,2.41008]
[1732459964082,3.81959,3320.0,3319.3,2.41008]
[1732459964310,3.81959,3320.0,3319.4,2.41006]